fUSD/lending_fUSD_20260410
["ID","MTS","AMOUNT","RATE_DAILY","PERIOD"]
[420216983,1775797846025,-166.873233,0.0001589,2]
[420216984,1775797846042,-151.0,0.0001589,2]
[420216985,1775797846074,-151.0,0.0001589,2]
[420216986,1775797846084,-151.0,0.0001589,2]
[420216987,1775797846118,-151.0,0.0001589,2]
[420216988,1775797846128,-151.0,0.0001589,2]
[420216989,1775797846158,-230.648033,0.0001589,2]
[420216990,1775797846167,-151.0,0.0001589,2]
[420216991,1775797846176,-157.281504,0.0001589,2]
[420216992,1775797846204,-151.0,0.0001589,2]
[420216993,1775797846214,-157.281504,0.0001589,2]
[420216994,1775797846225,-232.144649,0.0001589,2]
[420216995,1775797846235,-157.281504,0.0001589,2]
[420216996,1775797846253,-151.0,0.0001589,2]
[420216997,1775797846262,-157.281504,0.0001589,2]
[420216998,1775797846272,-151.0,0.0001589,2]
[420216999,1775797846288,-151.0,0.0001589,2]
[420217000,1775797846298,-227.571283,0.0001589,2]
[420217002,1775797846307,-151.0,0.0001589,2]
[420217004,1775797846317,-151.0,0.0001589,2]
[420217006,1775797846333,-151.0,0.0001589,2]
[420217008,1775797846343,-151.0,0.0001589,2]
[420217010,1775797846356,-151.0,0.0001589,2]
[420217012,1775797846367,-151.0,0.0001589,2]
[420217014,1775797846378,-222.041414,0.0001589,2]
[420217016,1775797846388,-151.0,0.0001589,2]
[420217018,1775797846403,-243.610742,0.0001589,2]
[420217019,1775797846418,-151.0,0.0001589,2]
[420217020,1775797846428,-2379.029205,0.0001589,2]
[420217031,1775797846444,-2379.029205,0.0001589,2]
[420217038,1775797846790,-2379.029205,0.0001589,2]
[420217040,1775797846810,-2379.029205,0.0001589,2]
[420217041,1775797846823,-152.901798,0.0001589,2]
[420217043,1775797846834,-252.304781,0.0001589,2]
[420217045,1775797846858,-180.809483,0.0001589,2]
[420217046,1775797846868,-168.793611,0.0001589,2]
[420217047,1775797846878,-252.304781,0.0001589,2]
[420217048,1775797846902,-151.0,0.0001589,2]
[420217049,1775797846912,-168.793611,0.0001589,2]
[420217050,1775797846928,-252.304781,0.0001589,2]
[420217051,1775797846947,-151.0,0.0001589,2]
[420217052,1775797846957,-151.0,0.0001589,2]
[420217053,1775797846976,-168.793611,0.0001589,2]
[420217054,1775797846985,-151.0,0.0001589,2]
[420217055,1775797846997,-252.304781,0.0001589,2]
[420217056,1775797847007,-151.0,0.0001589,2]
[420217057,1775797847023,-168.793611,0.0001589,2]
[420217058,1775797847033,-151.0,0.0001589,2]
[420217059,1775797847045,-2000.0,0.0001589,2]
[420217060,1775797847055,-4000.0,0.00015895,2]
[420217061,1775797847072,-244.780761,0.00015895,2]
[420217062,1775797847081,-151.0,0.00015895,2]
[420217063,1775797847091,-151.0,0.00015895,2]
[420217064,1775797847106,-151.0,0.00015895,2]
[420217065,1775797847115,-225.227282,0.00015895,2]
[420217066,1775797847125,-151.0,0.00015895,2]
[420217067,1775797847135,-166.762421,0.00015895,2]
[420217068,1775797847146,-166.762421,0.00015895,2]
[420217069,1775797847155,-151.0,0.00015895,2]
[420217070,1775797847166,-166.762421,0.00015895,2]
[420217071,1775797847175,-151.0,0.00015895,2]
[420217072,1775797847185,-151.0,0.00015895,2]
[420217073,1775797847196,-166.762421,0.00015895,2]
[420217074,1775797847206,-175.258958,0.00015895,2]
[420217075,1775797847219,-151.0,0.00015895,2]
[420217076,1775797847228,-151.0,0.00015895,2]
[420217077,1775797847239,-278.50205,0.00015895,2]
[420217078,1775797847249,-151.0,0.00015895,2]
[420217079,1775797847259,-10000.0,0.00015899,2]
[420217080,1775797847269,-151.0,0.00015899,2]
[420217081,1775797847278,-151.0,0.00015899,2]
[420217082,1775797847287,-151.0,0.00015899,2]
[420217083,1775797847301,-151.0,0.00015899,2]
[420217084,1775797847311,-151.0,0.00015899,2]
[420217085,1775797847320,-151.0,0.00015899,2]
[420217086,1775797847330,-151.0,0.00015899,2]
[420217087,1775797847339,-269.79892,0.00015899,2]
[420217088,1775797847352,-151.0,0.00015899,2]
[420217089,1775797847362,-434.082477,0.00015899,2]
[420217090,1775797847371,-434.082477,0.00015899,2]
[420217091,1775797847380,-434.082477,0.00015899,2]
[420217092,1775797847392,-434.082477,0.00015899,2]
[420217093,1775797847402,-151.0,0.00015899,2]
[420217094,1775797847411,-151.0,0.00015899,2]
[420217095,1775797847422,-151.0,0.00015899,2]
[420217096,1775797847431,-151.0,0.00015899,2]
[420217097,1775797847443,-151.0,0.00015899,2]
[420217098,1775797847452,-151.0,0.00015899,2]
[420217099,1775797847461,-151.0,0.00015899,2]
[420217100,1775797847471,-151.0,0.00015899,2]
[420217101,1775797847481,-151.0,0.00015899,2]
[420217102,1775797847490,-151.0,0.00015899,2]
[420217103,1775797847503,-151.0,0.00015899,2]
[420217104,1775797847512,-151.0,0.00015899,2]
[420217105,1775797847521,-151.0,0.00015899,2]
[420217106,1775797847537,-151.0,0.00015899,2]
[420217107,1775797847546,-192.631436,0.00015899,2]
[420217108,1775797847555,-151.0,0.00015899,2]
[420217109,1775797847574,-205.356462,0.00015899,2]
[420217110,1775797847584,-151.0,0.00015899,2]
[420217111,1775797847594,-151.0,0.00015899,2]
[420217112,1775797847610,-151.0,0.00015899,2]
[420217113,1775797847625,-151.0,0.00015899,2]
[420217114,1775797847636,-208.31407,0.00015899,2]
[420217115,1775797847645,-157.0,0.000159,5]
[420217116,1775797847655,-1814.21354726,0.000159,2]
[420217117,1775797847670,-911.29223435,0.000159,3]
[420217118,1775797847683,-151.0,0.000159,2]
[420217119,1775797847693,-151.0,0.000159,2]
[420217120,1775797847710,-366.99751011,0.000159,2]
[420217121,1775797847726,-732.96142492,0.000159,2]
[420217122,1775797847737,-1119.0,0.00015911,2]
[420217123,1775797847751,-1006.42,0.00015943,2]
[420217124,1775797847772,-159.0,0.00015951,5]
[420217125,1775797847791,-5888.0,0.00015951,2]
[420217126,1775797847805,-151.0,0.00015952,2]
[420217127,1775797847839,-288.626592,0.00015952,2]
[420217128,1775797847879,-151.0,0.00015952,2]
[420217129,1775797847896,-152.782116,0.00015952,2]
[420217130,1775797847927,-151.0,0.00015952,2]
[420217131,1775797847958,-151.0,0.00015952,2]
[420217132,1775797847985,-151.0,0.00015952,2]
[420217133,1775797848011,-176.690127,0.00015952,2]
[420217134,1775797848023,-151.0,0.00015952,2]
[420217135,1775797848038,-151.0,0.00015952,2]
[420217136,1775797848056,-151.0,0.00015952,2]
[420217137,1775797848067,-151.0,0.00015952,2]
[420217138,1775797848080,-177.644472,0.00015952,2]
[420217139,1775797848097,-151.0,0.00015952,2]
[420217140,1775797848107,-152.13636,0.00015952,2]
[420217141,1775797848117,-151.0,0.00015952,2]
[420217142,1775797848141,-151.0,0.00015952,2]
[420217143,1775797848152,-434.082477,0.00015952,2]
[420217144,1775797848162,-434.082477,0.00015952,2]
[420217145,1775797848190,-434.082477,0.00015952,2]
[420217146,1775797848200,-434.082477,0.00015952,2]
[420217147,1775797848211,-151.0,0.00015952,2]
[420217148,1775797848230,-151.0,0.00015952,2]
[420217149,1775797848240,-151.0,0.00015952,2]
[420217150,1775797848250,-151.0,0.00015952,2]
[420217151,1775797848259,-151.0,0.00015952,2]
[420217152,1775797848273,-151.0,0.00015952,2]
[420217153,1775797848283,-151.0,0.00015952,2]
[420217154,1775797848293,-151.0,0.00015952,2]
[420217155,1775797848302,-151.0,0.00015952,2]
[420217156,1775797848316,-151.0,0.00015952,2]
[420217157,1775797848325,-262.724488,0.00015952,2]
[420217158,1775797848334,-151.0,0.00015952,2]
[420217159,1775797848343,-151.0,0.00015952,2]
[420217160,1775797848352,-151.0,0.00015952,2]
[420217161,1775797848366,-276.967291,0.00015952,2]
[420217162,1775797848375,-151.0,0.00015952,2]
[420217163,1775797848384,-166.762421,0.00015952,2]
[420217164,1775797848393,-166.762421,0.00015952,2]
[420217165,1775797848406,-151.0,0.00015952,2]
[420217166,1775797848415,-166.762421,0.00015952,2]
[420217167,1775797848424,-151.0,0.00015952,2]
[420217168,1775797848434,-151.0,0.00015952,2]
[420217169,1775797848443,-166.762421,0.00015952,2]
[420217170,1775797848453,-151.0,0.00015952,2]
[420217171,1775797848462,-151.0,0.00015952,2]
[420217172,1775797848473,-153.368333,0.00015952,2]
[420217173,1775797848484,-1118.769424,0.00015952,2]
[420217174,1775797848493,-151.0,0.00015956,2]
[420217175,1775797848503,-151.0,0.00015956,2]
[420217176,1775797848515,-151.0,0.00015956,2]
[420217177,1775797848526,-151.0,0.00015956,2]
[420217178,1775797848536,-151.0,0.00015956,2]
[420217179,1775797848549,-151.0,0.00015956,2]
[420217180,1775797848559,-151.0,0.00015956,2]
[420217181,1775797848571,-151.0,0.00015956,2]
[420217182,1775797848581,-151.0,0.00015956,2]
[420217183,1775797848594,-151.0,0.00015956,2]
[420217184,1775797848610,-274.264293,0.00015956,2]
[420217185,1775797848620,-151.0,0.00015956,2]
[420217186,1775797848631,-274.264293,0.00015956,2]
[420217187,1775797848641,-151.0,0.00015956,2]
[420217188,1775797848655,-274.264293,0.00015956,2]
[420217189,1775797848664,-151.0,0.00015956,2]
[420217190,1775797848675,-151.0,0.00015956,2]
[420217191,1775797848685,-274.264293,0.00015956,2]
[420217192,1775797848701,-151.0,0.00015956,2]
[420217193,1775797848710,-154.925788,0.00015956,2]
[420217194,1775797848723,-166.873233,0.00015956,2]
[420217195,1775797848736,-154.925788,0.00015956,2]
[420217196,1775797848750,-166.873233,0.00015956,2]
[420217197,1775797848760,-154.925788,0.00015956,2]
[420217198,1775797848770,-166.873233,0.00015956,2]
[420217199,1775797848789,-154.925788,0.00015956,2]
[420217200,1775797848799,-166.873233,0.00015956,2]
[420217201,1775797848808,-157.953395,0.00015956,2]
[420217202,1775797848818,-151.0,0.00015956,2]
[420217203,1775797848837,-151.0,0.00015956,2]
[420217204,1775797848847,-151.0,0.00015956,2]
[420217205,1775797848856,-221.162017,0.00015956,2]
[420217206,1775797848866,-151.0,0.00015956,2]
[420217207,1775797848881,-157.281504,0.00015956,2]
[420217208,1775797848890,-151.0,0.00015956,2]
[420217209,1775797848900,-157.281504,0.00015956,2]
[420217210,1775797848909,-157.281504,0.00015956,2]
[420217211,1775797848924,-273.542324,0.00015956,2]
[420217212,1775797848934,-157.281504,0.00015956,2]
[420217213,1775797848943,-151.0,0.00015956,2]
[420217214,1775797848960,-151.0,0.00015956,2]
[420217215,1775797848969,-196.653549,0.00015956,2]
[420217216,1775797848978,-151.0,0.00015956,2]
[420217217,1775797848989,-151.0,0.00015956,2]
[420217218,1775797849008,-151.0,0.00015956,2]
[420217219,1775797849017,-151.0,0.00015956,2]
[420217220,1775797849027,-151.0,0.00015956,2]
[420217221,1775797849052,-151.0,0.00015956,2]
[420217222,1775797849063,-151.0,0.00015956,2]
[420217223,1775797849089,-2379.029205,0.00015956,2]
[420217224,1775797849101,-2379.029205,0.00015956,2]
[420217225,1775797849115,-2379.029205,0.00015956,2]
[420217226,1775797849146,-252.304781,0.00015956,2]
[420217227,1775797849160,-168.793611,0.00015956,2]
[420217228,1775797849191,-252.304781,0.00015956,2]
[420217229,1775797849201,-2379.029205,0.00015956,2]
[420217230,1775797849234,-151.0,0.00015956,2]
[420217231,1775797849244,-168.793611,0.00015956,2]
[420217232,1775797849256,-252.304781,0.00015956,2]
[420217233,1775797849279,-151.0,0.00015956,2]
[420217234,1775797849290,-151.0,0.00015956,2]
[420217235,1775797849301,-168.793611,0.00015956,2]
[420217236,1775797849326,-301.001308,0.00015956,2]
[420217237,1775797849336,-252.304781,0.00015956,2]
[420217238,1775797849345,-151.0,0.00015956,2]
[420217239,1775797849354,-168.793611,0.00015956,2]
[420217240,1775797849374,-151.0,0.00015956,2]
[420217241,1775797849384,-5800.0,0.00015957,2]
[420217242,1775797849393,-3409.43,0.00015958,2]
[420217243,1775797849415,-5800.0,0.00015965,2]
[420217244,1775797849427,-2927.21689247,0.00015965,2]
[420217245,1775797849436,-151.0,0.00015965,2]
[420217246,1775797849447,-194.15381,0.00015965,2]
[420217247,1775797849456,-500.0,0.00015973,2]
[420217248,1775797849467,-178.12575991,0.00015984,2]
[420217249,1775797849479,-284.43769691,0.00015984,2]
[420217250,1775797849489,-195.78326691,0.00015984,2]
[420217251,1775797849501,-159.54406826,0.00015984,2]
[420217252,1775797849510,-286.80360781,0.0001599,2]
[420217253,1775797849525,-286.80360781,0.0001599,2]
[420217254,1775797849537,-286.80360781,0.0001599,2]
[420217255,1775797849547,-290.29128889,0.00015998,2]
[420217256,1775797849563,-500.0,0.00015998,2]
[420217257,1775797849572,-666.0,0.00015999,2]
[420217258,1775797849583,-303.70194317,0.00015999,2]
[420217259,1775797849600,-174.16436197,0.00015999,7]
[420217260,1775797849611,-500.0,0.00015999,2]
[420217261,1775797849620,-500.8242601,0.00015999,2]
[420217262,1775797849638,-500.0,0.00015999,8]
[420217263,1775797849652,-500.0,0.00015999,9]
[420217264,1775797849664,-57682.36356007,0.00015999,2]
[420217265,1775797849681,-204.72442706,0.00015999,5]
[420217266,1775797849696,-1007.76522789,0.00015999,5]
[420217267,1775797849709,-1007.76522789,0.00015999,5]
[420217268,1775797849723,-1007.76522789,0.00015999,5]
[420217269,1775797849735,-1007.76522789,0.00015999,5]
[420217270,1775797849747,-1007.76522789,0.00015999,5]
[420217271,1775797849758,-1007.76522789,0.00015999,5]
[420217272,1775797849769,-1007.76522789,0.00015999,5]
[420217273,1775797849780,-1007.76522791,0.00015999,5]
[420217274,1775797849791,-151.0,0.00015999,2]
[420217275,1775797849804,-151.0,0.00015999,2]
[420217276,1775797849816,-151.000009,0.00015999,2]
[420217277,1775797849826,-151.0,0.00015999,2]
[420217278,1775797849844,-151.0,0.00015999,2]
[420217279,1775797849858,-151.0,0.00015999,2]
[420217280,1775797849867,-151.0,0.00015999,2]
[420217281,1775797849888,-151.0,0.00015999,2]
[420217282,1775797849902,-279.592447,0.00015999,2]
[420217283,1775797849913,-151.0,0.00015999,2]
[420217284,1775797849924,-434.082477,0.00015999,2]
[420217285,1775797849938,-434.082477,0.00015999,2]
[420217286,1775797849948,-434.082477,0.00015999,2]
[420217287,1775797849964,-434.082477,0.00015999,2]
[420217288,1775797849975,-151.0,0.00015999,2]
[420217289,1775797849989,-151.0,0.00015999,2]
[420217290,1775797849999,-151.0,0.00015999,2]
[420217291,1775797850013,-151.0,0.00015999,2]
[420217292,1775797850033,-151.0,0.00015999,2]
[420217293,1775797850045,-267.370632,0.00015999,2]
[420217294,1775797850058,-151.0,0.00015999,2]
[420217295,1775797850078,-262.57543,0.00015999,2]
[420217296,1775797850089,-151.0,0.00015999,2]
[420217297,1775797850100,-151.0,0.00015999,2]
[420217298,1775797850119,-151.0,0.00015999,2]
[420217299,1775797850132,-151.0,0.00015999,2]
[420217300,1775797850144,-151.0,0.00015999,2]
[420217301,1775797850155,-151.0,0.00015999,2]
[420217302,1775797850167,-151.0,0.00015999,2]
[420217303,1775797850186,-151.0,0.00015999,2]
[420217304,1775797850195,-151.0,0.00015999,2]
[420217305,1775797850207,-151.0,0.00015999,2]
[420217306,1775797850231,-151.0,0.00015999,2]
[420217307,1775797850249,-151.0,0.00015999,2]
[420217308,1775797850265,-183.472036,0.00015999,2]
[420217309,1775797850279,-166.762421,0.00015999,2]
[420217310,1775797850291,-166.762421,0.00015999,2]
[420217311,1775797850309,-151.0,0.00015999,2]
[420217312,1775797850323,-166.762421,0.00015999,2]
[420217313,1775797850333,-174.844153,0.00015999,2]
[420217314,1775797850357,-151.0,0.00015999,2]
[420217315,1775797850370,-166.762421,0.00015999,2]
[420217316,1775797850384,-151.0,0.00015999,2]
[420217317,1775797850402,-151.0,0.00015999,2]
[420217318,1775797850416,-151.0,0.00015999,2]
[420217319,1775797850425,-274.264293,0.00015999,2]
[420217320,1775797850443,-274.264293,0.00015999,2]
[420217321,1775797850458,-151.0,0.00015999,2]
[420217322,1775797850467,-274.264293,0.00015999,2]
[420217323,1775797850481,-151.0,0.00015999,2]
[420217324,1775797850494,-151.0,0.00015999,2]
[420217325,1775797850511,-274.264293,0.00015999,2]
[420217326,1775797850521,-154.925788,0.00015999,2]
[420217327,1775797850539,-166.873233,0.00015999,2]
[420217328,1775797850557,-154.925788,0.00015999,2]
[420217329,1775797850578,-166.873233,0.00015999,2]
[420217330,1775797850593,-154.925788,0.00015999,2]
[420217331,1775797850608,-166.873233,0.00015999,2]
[420217332,1775797850629,-154.925788,0.00015999,2]
[420217333,1775797850645,-166.873233,0.00015999,2]
[420217334,1775797850666,-500.0,0.00015999,2]
[420217335,1775797850683,-380.6816339,0.00015999,2]
[420217336,1775797850708,-151.0,0.00015999,2]
[420217337,1775797850720,-151.0,0.00015999,2]
[420217338,1775797850738,-151.0,0.00015999,2]
[420217339,1775797850759,-151.0,0.00015999,2]
[420217340,1775797850772,-157.281504,0.00015999,2]
[420217341,1775797850835,-151.0,0.00015999,2]
[420217342,1775797850944,-157.281504,0.00015999,2]
[420217343,1775797851028,-157.281504,0.00015999,2]
[420217344,1775797851178,-157.281514,0.00015999,2]
[420217345,1775797851316,-151.0,0.00015999,2]
[420217346,1775797851330,-151.0,0.00015999,2]
[420217347,1775797851347,-151.0,0.00015999,2]
[420217348,1775797851365,-151.0,0.00015999,2]
[420217349,1775797851374,-151.0,0.00015999,2]
[420217350,1775797851391,-151.0,0.00015999,2]
[420217351,1775797851408,-151.0,0.00015999,2]
[420217352,1775797851417,-151.0,0.00015999,2]
[420217353,1775797851436,-2379.029205,0.00015999,2]
[420217354,1775797851451,-2379.029205,0.00015999,2]
[420217355,1775797851460,-2379.029205,0.00015999,2]
[420217356,1775797851471,-252.304781,0.00015999,2]
[420217357,1775797851489,-168.793611,0.00015999,2]
[420217358,1775797851501,-252.304781,0.00015999,2]
[420217359,1775797851511,-2379.029206,0.00015999,2]
[420217360,1775797851530,-151.0,0.00015999,2]
[420217361,1775797851540,-168.793611,0.00015999,2]
[420217362,1775797851550,-252.304781,0.00015999,2]
[420217363,1775797851566,-151.0,0.00015999,2]
[420217364,1775797851581,-252.864572,0.00015999,2]
[420217365,1775797851592,-168.793611,0.00015999,2]
[420217366,1775797851602,-252.30477807,0.00015999,2]
[420217367,1775797851614,-151.0,0.00015999,2]
[420217368,1775797851627,-168.79361,0.00015999,2]
[420217369,1775797851636,-229.445236,0.00015999,2]
[420217370,1775797851650,-37942.41141388,0.00016,2]
[420217371,1775797852851,-1366.0,0.0001559,2]
[420217372,1775797853017,-10408.53572325,0.00016,2]
[420217373,1775797853374,-1876.54330256,0.00016,2]
[420217374,1775797853420,-511.5,0.00015733,2]
[420217375,1775797853438,-481.3395008,0.00015733,2]
[420217376,1775797853464,-432.1604992,0.00015733,2]
[420217377,1775797853473,-300.07893389,0.00016,2]
[420217378,1775797853514,-13158.2384357,0.00016,2]
[420217379,1775797853526,-101615.29870157,0.00016,2]
[420217380,1775797853539,-1442.9507351,0.00016,2]
[420217387,1775799032093,-252.80804943,0.00012,7]
[420217388,1775799032219,-247.19195057,0.00012,7]
[420217389,1775799032325,-307.0,0.0001255,2]
[420217390,1775799032363,-700.85971444,0.0001255,2]
[420217391,1775799032378,-510.0,0.000131,2]
[420217392,1775799032398,-300.0,0.00013199,2]
[420217393,1775799032419,-1200.0,0.00013199,2]
[420217394,1775799032430,-5000.0,0.000132,2]
[420217396,1775799032447,-371.21979584,0.000132,2]
[420217398,1775799032460,-193.76144889,0.000132,2]
[420217400,1775799032471,-36.83766044,0.000132,2]
[420217403,1775799032490,-1105.33928462,0.000132,2]
[420217405,1775799032501,-500.0,0.00013698,2]
[420217406,1775799032512,-1400.0,0.00014082,2]
[420217407,1775799032522,-2900.0,0.00014082,2]
[420217408,1775799032534,-304.0,0.00014472,2]
[420217411,1775799032544,-1177.21,0.00014478,2]
[420217412,1775799032553,-150.0,0.00014502,2]
[420217413,1775799032567,-1046.62,0.00014514,2]
[420217414,1775799032578,-1600.0,0.00014531,2]
[420217415,1775799032588,-172.4,0.00014596,2]
[420217416,1775799032597,-2000.0,0.00014649,2]
[420217417,1775799032611,-364.68,0.00014711,2]
[420217418,1775799032622,-597.62670957,0.00014844,2]
[420217419,1775799032631,-500.0,0.00014844,2]
[420217420,1775799032641,-220.93104248,0.00014844,2]
[420217421,1775799032655,-151.0,0.00014844,2]
[420217422,1775799032668,-168.0,0.00014888,2]
[420217423,1775799032678,-1113.0,0.00014896,2]
[420217424,1775799032688,-500.0,0.00014899,2]
[420217425,1775799032700,-151.0,0.00014899,2]
[420217426,1775799032710,-151.0,0.00014954,2]
[420217427,1775799032721,-1000.0,0.00015,14]
[420217428,1775799032731,-151.0,0.00015009,2]
[420217429,1775799032741,-1113.0,0.00015062,2]
[420217430,1775799032751,-151.0,0.00015064,2]
[420217431,1775799032762,-510.0,0.00015068,3]
[420217432,1775799032772,-986.22,0.00015074,2]
[420217433,1775799032782,-151.0,0.00015119,2]
[420217434,1775799032792,-168.0,0.00015191,2]
[420217435,1775799032802,-168.0,0.00015261,2]
[420217436,1775799032813,-1113.0,0.00015326,2]
[420217437,1775799032824,-986.22,0.00015348,2]
[420217438,1775799032833,-1113.0,0.00015374,2]
[420217439,1775799032843,-364.68,0.00015447,2]
[420217440,1775799032854,-1400.0,0.00015452,2]
[420217441,1775799032865,-2900.0,0.00015452,2]
[420217442,1775799032875,-150.0,0.00015497,2]
[420217443,1775799032886,-168.59918619,0.00015497,2]
[420217444,1775799032897,-1563.0,0.00015497,2]
[420217445,1775799032909,-500.0,0.00015499,2]
[420217446,1775799032918,-735.951,0.00015511,2]
[420217447,1775799032928,-2000.0,0.000156,2]
[420217448,1775799032942,-998.66,0.00015622,2]
[420217449,1775799032952,-500.0,0.00015674,2]
[420217450,1775799032962,-1107.47498678,0.00015679,2]
[420217451,1775799032971,-168.0,0.0001568,2]
[420217452,1775799032982,-1266.89628645,0.0001568,2]
[420217453,1775799032993,-306.0,0.000157,2]
[420217454,1775799033003,-313.0,0.000157,2]
[420217455,1775799033013,-1264.0,0.00015771,2]
[420217456,1775799033024,-1218.0,0.00015771,2]
[420217457,1775799033037,-926.0,0.00015771,2]
[420217458,1775799033046,-622.0,0.00015771,2]
[420217459,1775799033056,-1347.0,0.00015771,2]
[420217460,1775799033066,-281.599203,0.00015778,2]
[420217461,1775799033078,-218.452716,0.00015778,2]
[420217462,1775799033101,-260.8155,0.00015778,7]
[420217463,1775799033112,-181.878574,0.00015778,7]
[420217464,1775799033125,-365.056266,0.00015778,2]
[420217465,1775799033138,-150.0,0.000158,2]
[420217466,1775799033149,-478.19020745,0.000158,2]
[420217467,1775799033159,-1086.99531895,0.000158,2]
[420217468,1775799033173,-2500.0,0.000158,2]
[420217469,1775799033182,-2802.75335358,0.000158,2]
[420217470,1775799033192,-478.19020743,0.00015811,2]
[420217471,1775799033206,-2802.75335356,0.00015811,2]
[420217472,1775799033218,-1086.99531892,0.00015814,2]
[420217473,1775799033228,-478.19020743,0.00015822,2]
[420217474,1775799033238,-2802.75335356,0.00015822,2]
[420217475,1775799033249,-1086.99531892,0.00015829,2]
[420217476,1775799033259,-478.19020743,0.00015833,2]
[420217477,1775799033271,-2802.75335356,0.00015833,2]
[420217478,1775799033281,-1086.99531892,0.00015843,2]
[420217479,1775799033293,-478.19020743,0.00015844,2]
[420217480,1775799033303,-2802.75335356,0.00015844,2]
[420217481,1775799033318,-478.19020743,0.00015856,2]
[420217482,1775799033331,-1086.99531892,0.00015857,2]
[420217483,1775799033341,-168.0,0.00015866,2]
[420217484,1775799033361,-87.42646456,0.00015867,2]
[420217485,1775799033378,-390.76374287,0.00015867,2]
[420217486,1775799033391,-863.6543439,0.00015871,2]
[420217487,1775799033414,-223.34097502,0.00015871,2]
[420217488,1775799033425,-500.0,0.00015872,2]
[420217489,1775799033447,-478.19020743,0.00015878,2]
[420217490,1775799033457,-1044.35006979,0.00015886,2]
[420217491,1775799033884,-42.64524913,0.00015886,2]
[420217492,1775799033998,-478.19020743,0.00015889,2]
[420217493,1775799034028,-9.29123386,0.00015899,2]
[420217494,1775799034997,-490.70876614,0.00015899,2]
[420217495,1775799035008,-4.26618841,0.00015899,2]
[420217496,1775799035022,-495.73381159,0.00015899,2]
[420217497,1775799035032,-257.34964716,0.00015899,2]
[420217498,1775799035045,-242.65035284,0.00015899,2]
[420217499,1775799035058,-109.30713361,0.00015899,2]
[420217501,1775799038894,-2802.75335356,0.00015856,2]
[420217502,1775799038910,-1174.42083788,0.00015867,2]
[420217503,1775799041192,-37.08987678,0.00015867,2]
[420217504,1775799041221,-688.8580236,0.00015867,2]
[420217505,1775799041230,-902.3846153,0.00015867,2]
[420217506,1775799041237,-58.58435427,0.00015899,2]
[420217507,1775799041245,-500.0,0.00015899,2]
[420217508,1775799041257,-242351.99598864,0.000159,2]
[420217509,1775799041567,-644.20590704,0.0001568,2]
[420217540,1775799043307,-900.05641542,0.00015771,2]
[420217541,1775799043322,-146.94358458,0.00015771,2]
[420217542,1775799043335,-2802.75335356,0.00015878,2]
[420217543,1775799043348,-8830.41183812,0.000159,2]
[420217544,1775799043364,-2863.11640333,0.000159,2]
[420217545,1775799043476,-15942.83241652,0.000159,2]
[420217546,1775799043488,-1119.91365339,0.000159,2]
[420217547,1775799043499,-1093.56499901,0.000159,2]
[420217548,1775799043513,-5000.0,0.000159,2]
[420217549,1775799043524,-478.19020743,0.000159,2]
[420217550,1775799043534,-863.1270912,0.000159,2]
[420217551,1775799043546,-1086.99531892,0.000159,2]
[420217553,1775799043561,-1704.72,0.00015958,2]
[420217555,1775799043571,-500.0,0.00015973,2]
[420217557,1775799043583,-500.68363415,0.00015973,2]
[420217559,1775799043593,-500.0,0.00015973,2]